fUSD/lending_fUSD_20260510
["ID","MTS","AMOUNT","RATE_DAILY","PERIOD"]
[421955155,1778368242000,-683.78,0.000318,14]
[421955156,1778368242000,-188.55157019,0.00031879,48]
[421955154,1778368242000,-503.0,0.00031572,9]
[421955158,1778368242000,-167.0,0.00031927,30]
[421955160,1778368242000,-161.0,0.00031929,30]
[421955162,1778368242000,-8396.67099927,0.00032,120]
[421955164,1778368242000,-151.0,0.0003221,5]
[421955165,1778368242000,-1265.0,0.00032272,5]
[421955166,1778368242000,-503.0,0.00032469,10]
[421955167,1778368242000,-152.0,0.00032549,3]
[421955168,1778368242000,-150.0,0.00032636,2]
[421955172,1778368242000,-435.0,0.00032927,30]
[421955170,1778368242000,-256.0,0.00032877,2]
[421955169,1778368242000,-639.0,0.00032877,2]
[421955171,1778368242000,-170.88253791,0.00032877,2]
[421955163,1778368242000,-208.0536425,0.00032,120]
[421955173,1778368242000,-161.0,0.00032929,30]
[421955174,1778368242000,-163.0,0.00033,14]
[421955176,1778368242000,-611.52,0.000334,7]
[421955175,1778368242000,-503.0,0.00033365,11]
[421955177,1778368242000,-708.28743607,0.000335,55]
[421955180,1778368242000,-417.0,0.00033558,2]
[421955179,1778368242000,-6047.0,0.00033558,2]
[421955184,1778368242000,-450.0,0.00033677,2]
[421955181,1778368242000,-450.0,0.00033677,2]
[421955182,1778368242000,-450.0,0.00033677,2]
[421955122,1778368242000,-503.0,0.00028881,6]
[421955152,1778368242000,-1000.0,0.000315,7]
[421955159,1778368242000,-435.0,0.00031927,30]
[421955185,1778368242000,-450.0,0.00033677,2]
[421955153,1778368242000,-157.0,0.00031507,30]
[421955127,1778368242000,-700.0,0.0003007,2]
[421955126,1778368242000,-1557.39242831,0.0003,2]
[421955128,1778368242000,-776.20458845,0.0003007,2]
[421955129,1778368242000,-14047.45364857,0.0003013,2]
[421955130,1778368242000,-204.57174598,0.0003013,2]
[421955133,1778368242000,-200.0,0.00030137,2]
[421955131,1778368242000,-202.64377534,0.0003013,2]
[421955135,1778368242000,-235.56261772,0.00030411,3]
[421955183,1778368242000,-450.0,0.00033677,2]
[421955136,1778368242000,-6047.0,0.00030558,2]
[421955134,1778368242000,-151.0,0.00030239,2]
[421955140,1778368242000,-282.29,0.000307,7]
[421955145,1778368242000,-150.0,0.00031081,2]
[421955132,1778368242000,-23006.52678873,0.0003013,7]
[421955138,1778368242000,-611.52,0.000306,7]
[421955161,1778368242000,-158.0,0.00031929,30]
[421955148,1778368242000,-399.0,0.00031141,2]
[421955150,1778368242000,-500.0,0.00031173,120]
[421955151,1778368242000,-233.65543836,0.000313,2]
[421955147,1778368242000,-301.64693418,0.00031132,2]
[421955149,1778368242000,-577.10389741,0.00031173,5]
[421955146,1778368242000,-277.58,0.00031096,2]
[421955157,1778368242000,-792.79213028,0.00031916,2]
[421955137,1778368242000,-417.0,0.00030558,2]
[421955142,1778368242000,-435.0,0.00030927,30]
[421955143,1778368242000,-161.0,0.00030929,30]
[421955139,1778368242000,-503.0,0.00030675,8]
[421955141,1778368242000,-167.0,0.00030927,30]
[421955144,1778368242000,-155.0,0.00030929,30]
[421955228,1778368243000,-150.0,0.00035981,2]
[421955227,1778368243000,-435.0,0.00035927,30]
[421955221,1778368243000,-500.0,0.00035616,7]
[421955225,1778368243000,-274.9567669,0.00035616,2]
[421955220,1778368243000,-500.0,0.00035616,7]
[421955215,1778368243000,-882.0,0.00035323,30]
[421955223,1778368243000,-311.83771769,0.00035616,7]
[421955210,1778368243000,-195.77505181,0.00035,30]
[421955219,1778368243000,-500.0,0.00035616,7]
[421955226,1778368243000,-157.0,0.00035616,30]
[421955224,1778368243000,-500.0,0.00035616,7]
[421955217,1778368243000,-5530.0,0.000355,3]
[421955234,1778368243000,-417.0,0.00036558,2]
[421955229,1778368243000,-503.0,0.00036056,14]
[421955230,1778368243000,-151.0,0.00036153,30]
[421955233,1778368243000,-5418.828,0.00036558,2]
[421955242,1778368243000,-152.0,0.00036766,2]
[421955231,1778368243000,-441.2840287,0.00036284,2]
[421955232,1778368243000,-457.5,0.00036284,2]
[421955241,1778368243000,-152.0,0.00036766,2]
[421955238,1778368243000,-152.0,0.00036766,2]
[421955240,1778368243000,-1428.38747117,0.00036766,2]
[421955239,1778368243000,-152.0,0.00036766,2]
[421955236,1778368243000,-174.61919141,0.00036766,2]
[421955235,1778368243000,-5530.0,0.000366,5]
[421955209,1778368243000,-435.0,0.00034927,30]
[421955222,1778368243000,-500.0,0.00035616,7]
[421955211,1778368243000,-503.0,0.00035159,13]
[421955198,1778368243000,-200.0,0.00033927,30]
[421955216,1778368243000,-876.0,0.00035323,30]
[421955237,1778368243000,-743.50770149,0.00036766,2]
[421955186,1778368243000,-450.0,0.00033677,2]
[421955187,1778368243000,-450.0,0.00033677,2]
[421955189,1778368243000,-434.0,0.00033677,2]
[421955190,1778368243000,-188.83,0.00033689,30]
[421955188,1778368243000,-450.0,0.00033677,2]
[421955193,1778368243000,-293.31341137,0.00033697,2]
[421955191,1778368243000,-188.83,0.00033689,30]
[421955195,1778368243000,-200.0,0.00033927,30]
[421955192,1778368243000,-188.82,0.00033689,30]
[421955194,1778368243000,-435.0,0.00033927,30]
[421955197,1778368243000,-200.0,0.00033927,30]
[421955212,1778368243000,-792.79213028,0.00035197,2]
[421955196,1778368243000,-200.0,0.00033927,30]
[421955199,1778368243000,-208.0,0.00033927,30]
[421955201,1778368243000,-282.29,0.000341,7]
[421955204,1778368243000,-150.0,0.00034267,2]
[421955203,1778368243000,-503.0,0.00034262,12]
[421955205,1778368243000,-23872.0,0.000344,2]
[421955206,1778368243000,-163.0,0.00034521,30]
[421955202,1778368243000,-151.0,0.00034182,7]
[421955208,1778368243000,-1500.0,0.00034795,2]
[421955218,1778368243000,-159.665,0.00035616,60]
[421955213,1778368243000,-1500.0,0.000352,7]
[421955214,1778368243000,-817.0,0.00035323,30]
[421955207,1778368243000,-209.0,0.00034697,2]
[421955200,1778368243000,-500.0,0.00034009,27]
[421955254,1778368243000,-457.5,0.00037191,2]
[421955244,1778368243000,-152.0,0.00036766,2]
[421955293,1778368243000,-1093.57565763,0.00037728,2]
[421955278,1778368243000,-532.61467442,0.00037691,2]
[421955273,1778368243000,-492.17769921,0.00037691,2]
[421955276,1778368243000,-527.1999469,0.00037691,2]
[421955270,1778368243000,-300.0,0.00037691,2]
[421955282,1778368243000,-853.29787158,0.00037691,2]
[421955286,1778368243000,-863.54795654,0.00037728,2]
[421955284,1778368243000,-343.62395792,0.00037691,2]
[421955285,1778368243000,-1145.9825453,0.00037728,2]
[421955294,1778368243000,-656.23693228,0.00037728,2]
[421955291,1778368243000,-309.51003376,0.00037728,2]
[421955283,1778368243000,-1196.29815149,0.00037691,2]
[421955288,1778368243000,-384.38279485,0.00037728,2]
[421955275,1778368243000,-300.0,0.00037691,2]
[421955290,1778368243000,-483.58541473,0.00037728,2]
[421955289,1778368243000,-451.4433371,0.00037728,2]
[421955292,1778368243000,-300.0,0.00037728,2]
[421955296,1778368243000,-527.1999469,0.00037728,2]
[421955300,1778368243000,-300.25804147,0.00037728,2]
[421955297,1778368243000,-967.08572626,0.00037728,2]
[421955295,1778368243000,-603.8329142,0.00037728,2]
[421955299,1778368243000,-300.0,0.00037728,2]
[421955298,1778368243000,-401.9754018,0.00037728,2]
[421955301,1778368243000,-853.29787158,0.00037728,2]
[421955302,1778368243000,-1196.29815149,0.00037728,2]
[421955303,1778368243000,-343.62395792,0.00037728,2]
[421955246,1778368243000,-152.0,0.00036766,2]
[421955287,1778368243000,-310.57459591,0.00037728,2]
[421955281,1778368243000,-300.25804147,0.00037691,2]
[421955277,1778368243000,-1065.80891604,0.00037691,2]
[421955272,1778368243000,-1093.57565763,0.00037691,2]
[421955255,1778368243000,-282.29,0.000372,7]
[421955247,1778368243000,-152.0,0.00036766,2]
[421955243,1778368243000,-152.0,0.00036766,2]
[421955251,1778368243000,-435.0,0.00036927,30]
[421955245,1778368243000,-152.0,0.00036766,2]
[421955248,1778368243000,-152.0,0.00036766,2]
[421955249,1778368243000,-153.53245003,0.00036766,2]
[421955253,1778368243000,-611.52,0.000371,7]
[421955274,1778368243000,-603.8329142,0.00037691,2]
[421955252,1778368243000,-503.0,0.00036953,15]
[421955257,1778368243000,-200.42074195,0.00037314,2]
[421955267,1778368243000,-300.0,0.00037691,2]
[421955258,1778368243000,-1481.23780761,0.00037314,2]
[421955259,1778368243000,-214.73073128,0.00037372,2]
[421955250,1778368243000,-578.20924308,0.00036766,2]
[421955266,1778368243000,-451.4433371,0.00037691,2]
[421955268,1778368243000,-483.58541473,0.00037691,2]
[421955260,1778368243000,-152.0,0.00037436,4]
[421955262,1778368243000,-863.54795654,0.00037691,2]
[421955261,1778368243000,-1145.98254531,0.00037691,2]
[421955263,1778368243000,-310.57459591,0.00037691,2]
[421955264,1778368243000,-463.36822182,0.00037691,2]
[421955265,1778368243000,-384.38279486,0.00037691,2]
[421955271,1778368243000,-300.76520126,0.00037691,2]
[421955269,1778368243000,-309.51003376,0.00037691,2]
[421955279,1778368243000,-725.31429466,0.00037691,2]
[421955256,1778368243000,-181.08010149,0.00037314,2]
[421955280,1778368243000,-300.0,0.00037691,2]
[421955348,1778368244000,-6770.10001407,0.0003888,60]
[421955349,1778368244000,-1561.0,0.00038904,30]
[421955345,1778368244000,-2145.323,0.00038831,2]
[421955347,1778368244000,-154.45974035,0.00038845,2]
[421955350,1778368244000,-201.93286099,0.00038958,2]
[421955346,1778368244000,-4455.00812003,0.00038834,2]
[421955344,1778368244000,-300.0,0.000388,10]
[421955341,1778368244000,-503.0,0.00038746,16]
[421955340,1778368244000,-200.0,0.000387,10]
[421955339,1778368244000,-2145.323,0.00038671,2]
[421955342,1778368244000,-700.0,0.0003877,2]
[421955357,1778368244000,-683.78,0.000392,14]
[421955343,1778368244000,-700.0,0.0003877,2]
[421955352,1778368244000,-298.47379803,0.00039,2]
[421955366,1778368244000,-2145.323,0.0003931,2]
[421955353,1778368244000,-31266.45202024,0.00039,2]
[421955355,1778368244000,-154.45974035,0.00039119,2]
[421955356,1778368244000,-2145.323,0.0003915,2]
[421955354,1778368244000,-153.74,0.00039117,120]
[421955359,1778368244000,-200.0,0.00039225,6]
[421955358,1778368244000,-153.74,0.00039217,120]
[421955361,1778368244000,-200.0,0.00039226,6]
[421955370,1778368244000,-892.0,0.00039317,120]
[421955363,1778368244000,-400.0,0.00039289,2]
[421955371,1778368244000,-7402.0,0.00039374,30]
[421955362,1778368244000,-400.0,0.00039289,2]
[421955365,1778368244000,-360.4777,0.0003931,2]
[421955338,1778368244000,-1200.0,0.0003863,30]
[421955351,1778368244000,-2145.323,0.00038991,2]
[421955337,1778368244000,-154.45974035,0.00038571,2]
[421955304,1778368244000,-526.35006308,0.00037728,2]
[421955332,1778368244000,-1561.0,0.00038356,30]
[421955306,1778368244000,-1444.0,0.00037753,120]
[421955305,1778368244000,-154.45974035,0.00037749,2]
[421955309,1778368244000,-503.0,0.0003785,16]
[421955307,1778368244000,-150.0,0.0003778,2]
[421955308,1778368244000,-683.78,0.000378,14]
[421955318,1778368244000,-151.0,0.00038125,30]
[421955319,1778368244000,-500.0,0.0003825,120]
[421955320,1778368244000,-500.0,0.0003825,120]
[421955322,1778368244000,-500.0,0.0003825,120]
[421955321,1778368244000,-500.0,0.0003825,120]
[421955311,1778368244000,-317.92348013,0.00037877,74]
[421955316,1778368244000,-499.999999,0.000381,120]
[421955312,1778368244000,-199.999999,0.00038,2]
[421955331,1778368244000,-160.05,0.00038356,60]
[421955310,1778368244000,-187.78006525,0.00037862,2]
[421955313,1778368244000,-154.45974035,0.00038023,2]
[421955324,1778368244000,-500.0,0.0003825,30]
[421955327,1778368244000,-500.0,0.0003825,30]
[421955326,1778368244000,-500.0,0.0003825,30]
[421955328,1778368244000,-154.45974035,0.00038297,2]
[421955335,1778368244000,-2145.323,0.00038511,2]
[421955333,1778368244000,-194.72792766,0.0003841,2]
[421955336,1778368244000,-1590.876,0.00038525,52]
[421955330,1778368244000,-2145.323,0.00038351,2]
[421955334,1778368244000,-792.79213028,0.00038478,2]
[421955329,1778368244000,-360.4777,0.00038351,2]
[421955323,1778368244000,-500.0,0.0003825,30]
[421955325,1778368244000,-500.0,0.0003825,30]
[421955314,1778368244000,-457.51485924,0.00038098,2]
[421955364,1778368244000,-400.0,0.00039289,2]
[421955429,1778368244000,-4642.63237738,0.0004,30]
[421955369,1778368244000,-950.0,0.00039317,120]
[421955411,1778368244000,-153.74,0.00039917,120]
[421955410,1778368244000,-1600.0,0.00039909,60]
[421955400,1778368244000,-685.3871629,0.0003973,7]
[421955406,1778368244000,-313817.99439307,0.0003987,14]
[421955407,1778368244000,-190.19955307,0.0003989,2]
[421955408,1778368244000,-2133.88426713,0.000399,20]
[421955409,1778368244000,-1600.0,0.00039909,30]
[421955404,1778368244000,-1344.52013298,0.000398,14]
[421955405,1778368244000,-153.74,0.00039817,120]
[421955412,1778368244000,-154.45974035,0.00039941,2]
[421955414,1778368244000,-75351.42173454,0.0003997,2]
[421955416,1778368244000,-1561.0,0.0004,30]
[421955413,1778368244000,-2145.323,0.00039949,2]
[421955402,1778368244000,-1854.99985667,0.00039766,2]
[421955420,1778368244000,-3235.21466438,0.0004,30]
[421955424,1778368244000,-822.18007593,0.0004,3]
[421955418,1778368244000,-190.0,0.0004,120]
[421955422,1778368244000,-260.55645624,0.0004,7]
[421955415,1778368244000,-350448.32496073,0.0004,49]
[421955423,1778368244000,-4300.20446095,0.0004,30]
[421955421,1778368244000,-368.72865919,0.0004,3]
[421955419,1778368244000,-151.0,0.0004,120]
[421955426,1778368244000,-396.10820725,0.0004,2]
[421955430,1778368244000,-325.31196372,0.0004,2]
[421955425,1778368244000,-24112.34245587,0.0004,2]
[421955427,1778368244000,-1584.76662836,0.0004,2]
[421955367,1778368244000,-153.74,0.00039317,120]
[421955431,1778368244000,-350.29098381,0.0004,3]
[421955417,1778368244000,-298.0,0.0004,30]
[421955401,1778368244000,-152.079551,0.00039765,2]
[421955428,1778368244000,-4172.16164167,0.0004,2]
[421955399,1778368244000,-157.0,0.00039726,30]
[421955403,1778368244000,-2145.323,0.0003979,2]
[421955360,1778368244000,-200.0,0.00039225,6]
[421955373,1778368244000,-228.54707307,0.00039392,3]
[421955375,1778368244000,-282.29,0.000394,30]
[421955382,1778368244000,-150.0,0.00039533,5]
[421955381,1778368244000,-153.74,0.00039517,120]
[421955374,1778368244000,-154.45974035,0.00039393,2]
[421955380,1778368244000,-328.38562332,0.00039506,2]
[421955383,1778368244000,-250.0,0.00039536,5]
[421955372,1778368244000,-342.8206096,0.00039392,3]
[421955376,1778368244000,-153.74,0.00039417,120]
[421955384,1778368244000,-350.0,0.00039539,5]
[421955377,1778368244000,-1561.0,0.00039452,30]
[421955379,1778368244000,-578.20924308,0.00039505,2]
[421955368,1778368244000,-950.0,0.00039317,120]
[421955386,1778368244000,-550.0,0.00039544,5]
[421955394,1778368244000,-503.0,0.00039643,17]
[421955391,1778368244000,-400.55218001,0.000396,30]
[421955392,1778368244000,-153.74,0.00039617,120]
[421955395,1778368244000,-154.45974035,0.00039667,2]
[421955378,1778368244000,-2145.323,0.0003947,2]
[421955390,1778368244000,-400.55218001,0.000396,30]
[421955393,1778368244000,-2145.323,0.0003963,2]
[421955387,1778368244000,-650.0,0.00039547,5]
[421955389,1778368244000,-400.55218001,0.000396,30]
[421955385,1778368244000,-450.0,0.00039542,5]
[421955396,1778368244000,-749.76752492,0.00039667,95]
[421955397,1778368244000,-150.0,0.00039669,2]
[421955388,1778368244000,-698.95886867,0.0003955,5]
[421955398,1778368244000,-153.74,0.00039717,120]
[421955473,1778368245000,-151.0,0.00040353,30]
[421955472,1778368245000,-350.0,0.00040347,4]
[421955469,1778368245000,-480.03,0.0004029,60]
[421955475,1778368245000,-273.119848,0.00040353,30]
[421955471,1778368245000,-153.74,0.00040317,120]
[421955465,1778368245000,-851.9793645,0.00040276,120]
[421955467,1778368245000,-156.13,0.0004029,60]
[421955470,1778368245000,-1494.16,0.0004029,60]
[421955476,1778368245000,-2222.75690501,0.00040353,120]
[421955474,1778368245000,-151.0,0.00040353,30]
[421955464,1778368245000,-2145.3231,0.00040269,2]
[421955468,1778368245000,-261.61,0.0004029,60]
[421955477,1778368245000,-531.99748666,0.00040359,120]
[421955484,1778368245000,-153.74,0.00040517,120]
[421955482,1778368245000,-2229.05245821,0.00040476,120]
[421955481,1778368245000,-2229.05245821,0.0004045,120]
[421955480,1778368245000,-2229.05245821,0.00040419,120]
[421955478,1778368245000,-153.74,0.00040417,120]
[421955483,1778368245000,-154.45974035,0.00040488,2]
[421955486,1778368245000,-2125.85716779,0.00040523,120]
[421955485,1778368245000,-2229.05245821,0.00040522,120]
[421955488,1778368245000,-1561.0,0.00040548,30]
[421955490,1778368245000,-531.99748666,0.00040572,120]
[421955495,1778368245000,-851.9793645,0.00040676,120]
[421955494,1778368245000,-2229.05245821,0.00040669,120]
[421955466,1778368245000,-320.18,0.0004029,60]
[421955487,1778368245000,-503.0,0.0004054,18]
[421955479,1778368245000,-531.99748666,0.00040417,120]
[421955457,1778368245000,-154.45974035,0.00040215,2]
[421955446,1778368245000,-299.308539,0.0004,30]
[421955461,1778368245000,-2229.05245821,0.00040232,120]
[421955492,1778368245000,-1604.95252402,0.00040602,2]
[421955436,1778368245000,-1706.93757448,0.0004,2]
[421955435,1778368245000,-206860.57219005,0.0004,120]
[421955433,1778368245000,-163.87940253,0.0004,2]
[421955432,1778368245000,-319.37098981,0.0004,2]
[421955434,1778368245000,-10851.51827095,0.0004,2]
[421955450,1778368245000,-151.0,0.0004,30]
[421955449,1778368245000,-299.308539,0.0004,30]
[421955438,1778368245000,-609.86109287,0.0004,2]
[421955441,1778368245000,-151.0,0.0004,30]
[421955444,1778368245000,-151.0,0.0004,30]
[421955443,1778368245000,-151.0,0.0004,30]
[421955439,1778368245000,-151.0,0.0004,30]
[421955458,1778368245000,-600.0,0.00040215,21]
[421955437,1778368245000,-515.24233918,0.0004,2]
[421955448,1778368245000,-299.308539,0.0004,30]
[421955447,1778368245000,-299.308539,0.0004,30]
[421955442,1778368245000,-151.0,0.0004,30]
[421955440,1778368245000,-151.0,0.0004,30]
[421955455,1778368245000,-153.74,0.00040117,120]
[421955462,1778368245000,-531.99748666,0.00040266,120]
[421955463,1778368245000,-360.4778,0.00040269,2]
[421955454,1778368245000,-2145.323,0.00040109,2]
[421955452,1778368245000,-2222.75690501,0.00040012,120]
[421955453,1778368245000,-153.74,0.00040017,120]
[421955459,1778368245000,-1300.0,0.00040215,21]
[421955456,1778368245000,-2222.75690501,0.00040172,120]
[421955460,1778368245000,-153.74,0.00040217,120]
[421955445,1778368245000,-151.0,0.0004,30]
[421955489,1778368245000,-150.0,0.00040559,2]
[421955451,1778368245000,-204.977196,0.0004,30]
[421955491,1778368245000,-190.0,0.000406,120]
[421955527,1778368245000,-2229.05245821,0.00040891,120]
[421955526,1778368245000,-2229.05245821,0.00040867,120]
[421955528,1778368245000,-2229.05245821,0.00040893,120]
[421955525,1778368245000,-168.0,0.00040867,120]
[421955529,1778368245000,-531.99748666,0.00040905,120]
[421955535,1778368245000,-400.0,0.00040997,2]
[421955532,1778368245000,-350.0,0.00040924,4]
[421955533,1778368245000,-256292.0,0.0004095,60]
[421955554,1778368245000,-500.0,0.00041095,2]
[421955537,1778368245000,-298.0,0.00041,30]
[421955536,1778368245000,-400.0,0.00040997,2]
[421955538,1778368245000,-329.15,0.00041,17]
[421955542,1778368245000,-199902.000001,0.00041,120]
[421955534,1778368245000,-2125.85716779,0.0004097,120]
[421955540,1778368245000,-440.18770237,0.00041,5]
[421955539,1778368245000,-168.56,0.00041,5]
[421955541,1778368245000,-1872.0,0.00041,7]
[421955548,1778368245000,-164.99523694,0.00041074,2]
[421955545,1778368245000,-600.0,0.00041037,21]
[421955543,1778368245000,-153.74,0.00041017,120]
[421955546,1778368245000,-1300.0,0.00041037,21]
[421955544,1778368245000,-154.45974035,0.00041036,2]
[421955550,1778368245000,-150.42,0.0004109,120]
[421955551,1778368245000,-1000.0,0.0004109,90]
[421955553,1778368245000,-500.0,0.00041095,2]
[421955552,1778368245000,-500.0,0.00041095,2]
[421955555,1778368245000,-500.0,0.00041095,2]
[421955493,1778368245000,-153.74,0.00040617,120]
[421955547,1778368245000,-1143.1,0.00041041,120]
[421955523,1778368245000,-200.0,0.00040867,120]
[421955549,1778368245000,-1617.68395719,0.00041087,2]
[421955530,1778368245000,-2229.05245821,0.00040913,120]
[421955531,1778368245000,-153.74,0.00040917,120]
[421955497,1778368245000,-150.42,0.0004069,120]
[421955499,1778368245000,-153.74,0.00040717,120]
[421955501,1778368245000,-531.99748666,0.00040726,120]
[421955496,1778368245000,-531.99748666,0.00040682,120]
[421955500,1778368245000,-2229.05245821,0.00040723,120]
[421955507,1778368245000,-1048.25247556,0.0004079,7]
[421955505,1778368245000,-154.45974035,0.00040762,2]
[421955498,1778368245000,-151.56522011,0.000407,12]
[421955502,1778368245000,-531.99748666,0.00040727,120]
[421955506,1778368245000,-1617.68395719,0.00040778,2]
[421955504,1778368245000,-3660.01,0.0004075,120]
[421955508,1778368245000,-622.35,0.00040798,4]
[421955509,1778368245000,-851.9793645,0.00040813,120]
[421955503,1778368245000,-350.0,0.00040746,2]
[421955511,1778368245000,-153.74,0.00040817,120]
[421955522,1778368245000,-370.60193955,0.0004086,13]
[421955524,1778368245000,-200.0,0.00040867,120]
[421955518,1778368245000,-370.60193955,0.0004086,13]
[421955521,1778368245000,-370.60193955,0.0004086,13]
[421955512,1778368245000,-350.0,0.00040818,30]
[421955520,1778368245000,-370.60193955,0.0004086,13]
[421955517,1778368245000,-370.60193955,0.0004086,13]
[421955510,1778368245000,-851.9793645,0.00040816,120]
[421955519,1778368245000,-370.60193955,0.0004086,13]
[421955515,1778368245000,-370.60193955,0.0004086,13]
[421955513,1778368245000,-370.60193963,0.0004086,13]
[421955514,1778368245000,-370.60193955,0.0004086,13]
[421955516,1778368245000,-370.60193955,0.0004086,13]
[421955590,1778368246000,-500.0,0.00041095,2]
[421955591,1778368246000,-500.0,0.00041095,2]
[421955596,1778368246000,-500.0,0.00041095,2]
[421955598,1778368246000,-500.0,0.00041095,2]
[421955587,1778368246000,-500.0,0.00041095,2]
[421955597,1778368246000,-500.0,0.00041095,2]
[421955595,1778368246000,-500.0,0.00041095,2]
[421955589,1778368246000,-500.0,0.00041095,2]
[421955588,1778368246000,-500.0,0.00041095,2]
[421955581,1778368246000,-500.0,0.00041095,2]
[421955594,1778368246000,-500.0,0.00041095,2]
[421955592,1778368246000,-500.0,0.00041095,2]
[421955604,1778368246000,-500.0,0.00041095,2]
[421955600,1778368246000,-500.0,0.00041095,2]
[421955599,1778368246000,-500.0,0.00041095,2]
[421955602,1778368246000,-500.0,0.00041095,2]
[421955603,1778368246000,-500.0,0.00041095,2]
[421955605,1778368246000,-500.0,0.00041095,2]
[421955601,1778368246000,-500.0,0.00041095,2]
[421955616,1778368246000,-500.0,0.00041095,2]
[421955617,1778368246000,-500.0,0.00041095,2]
[421955609,1778368246000,-500.0,0.00041095,2]
[421955608,1778368246000,-500.0,0.00041095,2]
[421955585,1778368246000,-500.0,0.00041095,2]
[421955606,1778368246000,-500.0,0.00041095,2]
[421955593,1778368246000,-500.0,0.00041095,2]
[421955584,1778368246000,-500.0,0.00041095,2]
[421955565,1778368246000,-500.0,0.00041095,2]
[421955582,1778368246000,-500.0,0.00041095,2]
[421955613,1778368246000,-500.0,0.00041095,2]
[421955560,1778368246000,-500.0,0.00041095,2]
[421955559,1778368246000,-500.0,0.00041095,2]
[421955558,1778368246000,-500.0,0.00041095,2]
[421955556,1778368246000,-500.0,0.00041095,2]
[421955557,1778368246000,-500.0,0.00041095,2]
[421955562,1778368246000,-500.0,0.00041095,2]
[421955573,1778368246000,-500.0,0.00041095,2]
[421955574,1778368246000,-500.0,0.00041095,2]
[421955572,1778368246000,-500.0,0.00041095,2]
[421955561,1778368246000,-500.0,0.00041095,2]
[421955563,1778368246000,-500.0,0.00041095,2]
[421955583,1778368246000,-500.0,0.00041095,2]
[421955564,1778368246000,-500.0,0.00041095,2]
[421955567,1778368246000,-500.0,0.00041095,2]
[421955569,1778368246000,-500.0,0.00041095,2]
[421955568,1778368246000,-500.0,0.00041095,2]
[421955570,1778368246000,-500.0,0.00041095,2]
[421955571,1778368246000,-500.0,0.00041095,2]
[421955579,1778368246000,-200.57141061,0.00041095,2]
[421955576,1778368246000,-551.23367372,0.00041095,2]
[421955586,1778368246000,-500.0,0.00041095,2]
[421955575,1778368246000,-500.0,0.00041095,2]
[421955578,1778368246000,-500.0,0.00041095,2]
[421955577,1778368246000,-500.0,0.00041095,2]
[421955580,1778368246000,-500.0,0.00041095,2]
[421955566,1778368246000,-500.0,0.00041095,2]
[421955615,1778368246000,-500.0,0.00041095,2]
[421955622,1778368246000,-500.0,0.00041095,2]
[421955611,1778368246000,-500.0,0.00041095,2]
[421955643,1778368246000,-300.0,0.00041095,2]
[421955653,1778368246000,-300.0,0.00041095,2]
[421955647,1778368246000,-300.0,0.00041095,2]
[421955652,1778368246000,-300.0,0.00041095,2]
[421955654,1778368246000,-156.31194856,0.00041095,2]
[421955646,1778368246000,-300.0,0.00041095,2]
[421955649,1778368246000,-300.0,0.00041095,2]
[421955648,1778368246000,-300.0,0.00041095,2]
[421955650,1778368246000,-300.0,0.00041095,2]
[421955651,1778368246000,-300.0,0.00041095,2]
[421955655,1778368246000,-1561.0,0.00041096,120]
[421955657,1778368246000,-1485.283808,0.00041096,120]
[421955642,1778368246000,-300.0,0.00041095,2]